bitfinex/quotes_BTCUSD_20260311
["timestamp","ask_amount","ask_price","bid_price","bid_amount"]
[1773207454788,0.00584001,69844.0,69834.0,0.07159836]
[1773207455048,0.07742847,69844.0,69834.0,0.07159836]
[1773207455664,0.07742847,69844.0,69787.0,0.06121268]
[1773207455665,0.06218484,69843.0,69830.0,0.00144]
[1773207455848,0.06218484,69843.0,69828.0,0.00144]
[1773207456887,0.07159016,69842.0,69828.0,0.07304403]
[1773207457089,0.06218484,69841.0,69828.0,0.07304403]
[1773207458396,0.06216535,69839.0,69828.0,0.07304403]
[1773207458547,0.06216535,69840.0,69828.0,0.07304403]
[1773207458747,0.06216535,69839.0,69828.0,0.07304403]
[1773207458951,0.13375961,69838.0,69828.0,0.07304403]
[1773207459160,0.27516668,69838.0,69828.0,0.07304403]
[1773207459354,0.0621501,69837.0,69828.0,0.07304403]
[1773207460286,0.0621501,69837.0,69825.0,0.0002]
[1773207460866,0.07159631,69836.0,69825.0,0.0002]
[1773207461068,0.0621501,69835.0,69825.0,0.0002]
[1773207461586,0.06212895,69840.0,69825.0,0.0002]
[1773207461768,0.14177497,69842.0,69825.0,0.0002]
[1773207462174,0.14177497,69843.0,69825.0,0.0002]
[1773207462589,0.14761498,69844.0,69825.0,0.0002]
[1773207463049,0.001,69837.0,69825.0,0.0002]
[1773207463443,0.21920316,69844.0,69825.0,0.0002]
[1773207463849,0.21920316,69844.0,69825.0,0.0012]
[1773207464237,0.21920316,69844.0,69825.0,0.0002]
[1773207464668,0.21920316,69844.0,69825.0,0.0012]
[1773207464872,0.14761498,69844.0,69825.0,0.0012]
[1773207465057,0.14761498,69844.0,69826.0,0.07304656]
[1773207465434,0.00584001,69844.0,69826.0,0.07304656]
[1773207467716,0.00584001,69844.0,69826.0,0.07404656]
[1773207468520,0.06213386,69843.0,69826.0,0.07404656]
[1773207468979,0.06213386,69843.0,69826.0,0.07260656]
[1773207469277,0.06213386,69843.0,69827.0,0.00144]
[1773207469691,0.06213302,69841.0,69828.0,0.07160451]
[1773207470111,0.14177497,69843.0,69829.0,0.00144]
[1773207470248,0.00584001,69844.0,69829.0,0.00144]
[1773207470813,0.00584001,69844.0,69830.0,0.14764615]
[1773207471150,0.07742863,69844.0,69829.0,0.00144]
[1773207471344,0.06214013,69843.0,69829.0,0.00144]
[1773207471765,0.06214013,69843.0,69830.0,0.07160246]
[1773207472590,0.06214013,69843.0,69830.0,0.07260246]
[1773207473016,0.06214013,69843.0,69830.0,0.07160246]
[1773207473309,0.06214013,69843.0,69830.0,0.07260246]
[1773207473505,0.06214013,69843.0,69830.0,0.07360246]
[1773207473708,0.06214013,69843.0,69830.0,0.07260246]
[1773207473862,0.06214013,69843.0,69830.0,0.07160246]
[1773207474061,0.06214013,69843.0,69830.0,0.07260246]
[1773207474286,0.06214013,69843.0,69830.0,0.07360246]
[1773207474704,0.06214013,69843.0,69830.0,0.07260246]
[1773207475090,0.06214013,69843.0,69830.0,0.07360246]
[1773207475324,0.06214013,69843.0,69830.0,0.07260246]
[1773207475474,0.1337295,69843.0,69830.0,0.07260246]
[1773207475679,0.27550447,69843.0,69830.0,0.07360246]
[1773207476119,0.27550447,69843.0,69830.0,0.07260246]
[1773207477100,0.2039151,69843.0,69830.0,0.07260246]
[1773207477712,0.2039151,69843.0,69830.0,0.07360246]
[1773207478179,0.14177497,69842.0,69830.0,0.07260246]
[1773207478573,0.00584001,69844.0,69830.0,0.22124861]
[1773207478735,1e-08,69844.0,69830.0,0.22124861]
[1773207479156,1e-08,69844.0,69830.0,0.22024861]
[1773207479381,1e-08,69844.0,69830.0,0.22124861]
[1773207479946,1e-08,69844.0,69830.0,0.22024861]
[1773207480239,0.0004,69848.0,69830.0,0.22124861]
[1773207480438,0.0004,69848.0,69830.0,0.2206215]
[1773207480986,0.0004,69848.0,69830.0,0.2216215]
[1773207481161,0.0004,69848.0,69830.0,0.2206215]
[1773207481341,0.0004,69848.0,69830.0,0.2196215]
[1773207481557,0.00022001,69851.0,69838.0,0.4919123]
[1773207481735,0.00022001,69851.0,69839.0,0.00144]
[1773207482136,0.00022001,69851.0,69840.0,0.07159221]
[1773207482340,0.06352549,69854.0,69840.0,0.07159221]
[1773207483243,0.00022001,69858.0,69844.0,0.04919123]
[1773207483426,0.00022001,69858.0,69840.0,0.46512205]
[1773207483427,0.07179387,69858.0,69847.0,0.04919123]
[1773207483968,0.0001088,69861.0,69847.0,0.04919123]
[1773207484178,0.0001088,69861.0,69845.0,0.00144]
[1773207484179,0.0001088,69861.0,69852.0,0.07157991]
[1773207484403,0.0001088,69861.0,69853.0,0.00144]
[1773207485280,0.0001088,69861.0,69853.0,0.00153062]
[1773207486019,0.0001088,69861.0,69853.0,0.00253062]
[1773207486386,0.0001088,69861.0,69854.0,0.07157786]
[1773207489110,0.06363429,69861.0,69854.0,0.07157786]
[1773207490329,0.0638543,69861.0,69854.0,0.07157786]
[1773207491368,0.00032881,69861.0,69854.0,0.07157786]
[1773207492682,1e-08,69868.0,69854.0,0.07157786]
[1773207492825,1e-08,69868.0,69858.0,0.04919123]
[1773207493031,1e-08,69868.0,69859.0,0.00144]
[1773207494920,1e-08,69868.0,69860.0,0.07157171]
[1773207496395,6.647e-05,69870.0,69860.0,0.07257171]
[1773207496599,0.06413272,69869.0,69860.0,0.07257171]
[1773207496781,0.07156308,69869.0,69860.0,0.001]
[1773207496991,0.07156308,69869.0,69853.0,0.07166901]
[1773207496992,0.06549593,69868.0,69854.0,0.00144]
[1773207497203,0.06549593,69868.0,69855.0,0.00144]
[1773207498498,0.06649593,69868.0,69855.0,0.00144]
[1773207498895,0.07156454,69867.0,69856.0,0.07157581]
[1773207499103,0.0675671,69866.0,69856.0,0.07157581]
[1773207499961,0.0675671,69866.0,69855.0,0.00144]
[1773207500190,0.0675671,69866.0,69855.0,0.07301632]
[1773207501168,0.06755933,69864.0,69855.0,0.00144]
[1773207502457,0.06755933,69864.0,69853.0,9.062e-05]
[1773207502720,0.06755933,69864.0,69854.0,0.00144]
[1773207503042,0.07156864,69863.0,69854.0,0.00144]
[1773207503251,0.07530582,69862.0,69854.0,0.00144]
[1773207503594,0.07530582,69862.0,69855.0,0.00144]
[1773207505277,0.07157069,69861.0,69855.0,0.00144]
[1773207505897,0.14657553,69861.0,69855.0,0.00144]
[1773207506847,0.14757553,69861.0,69855.0,0.07301636]
[1773207507045,0.001,69861.0,69855.0,0.07301636]
[1773207507613,0.07156543,69867.0,69855.0,0.07301636]
[1773207507819,0.07322353,69868.0,69857.0,0.04919123]
[1773207507999,0.07178353,69868.0,69855.0,0.07301636]
[1773207508385,0.14666635,69868.0,69855.0,0.07301636]
[1773207508510,0.07510283,69868.0,69855.0,0.07301636]
[1773207509360,0.00022001,69868.0,69858.0,0.04919123]
[1773207509573,0.00022001,69868.0,69855.0,0.07301636]
[1773207511157,0.07178374,69868.0,69855.0,0.07301636]
[1773207511367,0.07549488,69868.0,69855.0,0.07301636]
[1773207511930,0.14705841,69868.0,69855.0,0.07301636]
[1773207512170,0.1469048,69868.0,69855.0,0.07301636]
[1773207512357,0.07534127,69868.0,69855.0,0.07301636]
[1773207513782,0.14690526,69868.0,69855.0,0.07301636]
[1773207517646,0.07534127,69868.0,69855.0,0.07301636]
[1773207517840,0.14690492,69868.0,69855.0,0.07301636]
[1773207518223,0.07226395,69875.0,69858.0,0.04919123]
[1773207518627,0.04047131,69874.0,69859.0,0.00144]
[1773207518828,0.04047131,69872.0,69859.0,0.07301267]
[1773207519037,0.04047131,69872.0,69860.0,0.04919123]
[1773207519238,0.04047131,69872.0,69859.0,0.07301267]
[1773207520943,0.04326439,69870.0,69859.0,0.07301267]
[1773207522654,0.04326439,69870.0,69860.0,0.04919123]
[1773207523400,0.07156249,69869.0,69861.0,0.07157069]
[1773207524789,0.07156249,69869.0,69862.0,0.00144]
[1773207524790,0.07256249,69869.0,69862.0,0.00144]
[1773207525034,0.001,69869.0,69862.0,0.00144]
[1773207525229,0.11482634,69870.0,69862.0,0.00144]
[1773207525630,0.11482634,69870.0,69863.0,0.07156864]
[1773207525832,0.00022001,69872.0,69863.0,0.07156864]
[1773207527044,0.001,69869.0,69863.0,0.07156864]
[1773207527249,0.07178007,69872.0,69863.0,0.07156864]
[1773207527485,0.02890068,69871.0,69863.0,0.07156864]
[1773207527832,0.02890068,69871.0,69864.0,0.00144]
[1773207528063,0.02890068,69871.0,69865.0,0.00144]
[1773207530779,0.02890068,69871.0,69865.0,0.07300629]
[1773207531192,0.10146167,69871.0,69865.0,0.07300629]
[1773207531368,0.07256099,69871.0,69865.0,0.07300629]
[1773207531570,0.07240733,69871.0,69865.0,0.07300629]
[1773207532268,0.07140733,69871.0,69865.0,0.07300629]
[1773207532430,0.07178007,69872.0,69865.0,0.07300629]
[1773207533812,0.001,69871.0,69865.0,0.07300629]
[1773207534147,0.07178007,69872.0,69865.0,0.07300629]
[1773207534535,0.07278007,69872.0,69865.0,0.07300629]
[1773207534934,0.07178007,69872.0,69865.0,0.07300629]
[1773207535456,0.001,69871.0,69865.0,0.07300629]
[1773207535749,0.07178007,69872.0,69865.0,0.07300629]
[1773207537032,0.10158025,69872.0,69865.0,0.07300629]
[1773207537608,0.10258025,69872.0,69865.0,0.07300629]
[1773207539157,0.00070731,69875.0,69865.0,0.02875157]
[1773207540153,0.07226436,69875.0,69864.0,0.00144]
[1773207540315,0.02980018,69874.0,69864.0,0.00144]
[1773207540515,0.07226436,69875.0,69864.0,0.00144]
[1773207540952,0.07226436,69875.0,69865.0,0.07156659]
[1773207541668,0.02980018,69874.0,69855.0,0.0002]
[1773207541814,0.02980018,69872.0,69854.0,0.00164]
[1773207542548,0.02980018,69872.0,69854.0,0.0002]
[1773207542752,0.02980018,69872.0,69854.0,0.00164]
[1773207543120,0.02980018,69870.0,69854.0,0.0002]
[1773207543328,0.02980018,69870.0,69854.0,0.00164]
[1773207543744,0.02980018,69870.0,69854.0,0.0002]
[1773207544597,0.02980018,69870.0,69854.0,0.00164]
[1773207545090,0.02980018,69868.0,69854.0,0.00164]
[1773207545291,0.00144,69867.0,69854.0,0.00164]
[1773207545841,0.00144,69867.0,69854.0,0.0002]
[1773207546067,0.00144,69867.0,69854.0,0.00164]
[1773207546271,0.00128633,69867.0,69854.0,0.0002]
[1773207546473,0.00128633,69867.0,69854.0,0.00164]
[1773207547118,0.07156556,69866.0,69854.0,0.00164]
[1773207547330,0.07156556,69866.0,69854.0,0.0002]
[1773207547494,0.07156556,69866.0,69854.0,0.00164]
[1773207547906,0.07156556,69866.0,69854.0,0.0002]
[1773207548102,0.07156556,69866.0,69854.0,0.00164]
[1773207548506,0.07256556,69866.0,69854.0,0.00164]
[1773207549115,0.07156556,69866.0,69854.0,0.00164]
[1773207549443,0.07256556,69866.0,69854.0,0.0002]
[1773207549648,0.07256556,69866.0,69854.0,0.00164]
[1773207550005,0.07256556,69866.0,69848.0,0.0006]
[1773207550006,0.02980018,69864.0,69848.0,0.0006]
[1773207550206,0.02991202,69864.0,69844.0,0.07864807]
[1773207550416,0.02991202,69864.0,69843.0,0.07158862]
[1773207550616,0.02991202,69864.0,69839.0,1e-08]
[1773207550812,0.02980018,69862.0,69839.0,1e-08]
[1773207551060,0.14144063,69863.0,69839.0,1e-08]
[1773207551061,0.02980018,69860.0,69839.0,1e-08]
[1773207551486,0.02980018,69860.0,69829.0,0.0002]
[1773207551487,0.07157273,69859.0,69829.0,0.0002]
[1773207551702,0.07157273,69859.0,69848.0,0.0002]
[1773207551980,0.38345499,69859.0,69825.0,0.00023]
[1773207552194,0.31155386,69858.0,69825.0,0.00023]
[1773207552323,4.575e-05,69856.0,69825.0,0.00023]
[1773207552523,4.575e-05,69854.0,69825.0,0.00023]
[1773207552724,0.00023,69850.0,69822.0,0.0014]
[1773207553026,4.575e-05,69848.0,69822.0,0.0014]
[1773207553571,0.07158401,69848.0,69822.0,0.0014]
[1773207553793,0.00011938,69847.0,69822.0,0.0014]
[1773207554250,0.00011938,69847.0,69809.0,1e-08]
[1773207554456,0.0001104,69842.0,69810.0,0.03150281]
[1773207554682,0.0001104,69840.0,69810.0,0.03150281]
[1773207554899,0.0001104,69838.0,69810.0,0.03150281]
[1773207555804,0.07170604,69838.0,69810.0,0.03150281]
[1773207556193,0.07170604,69838.0,69811.0,0.03155801]
[1773207556365,0.21314667,69838.0,69811.0,0.03155801]
[1773207556761,0.21514667,69838.0,69811.0,0.03155801]
[1773207556991,0.21614667,69838.0,69811.0,0.03155801]
[1773207557190,0.07470604,69838.0,69811.0,0.03155801]
[1773207557395,0.07370604,69838.0,69809.0,1e-08]
[1773207557608,0.07370604,69838.0,69809.0,0.03157084]
[1773207557828,0.07470604,69838.0,69809.0,0.03157084]
[1773207558233,0.07170604,69838.0,69810.0,0.0014]
[1773207558395,0.07170604,69838.0,69809.0,0.03157084]
[1773207558621,0.07370604,69838.0,69809.0,0.03297084]
[1773207559042,0.07270604,69838.0,69809.0,0.03157084]
[1773207559244,0.07270604,69838.0,69809.0,0.03297084]
[1773207559403,0.07370604,69838.0,69809.0,0.03177084]
[1773207559602,0.07370604,69838.0,69809.0,0.00020001]
[1773207559946,0.07270604,69838.0,69810.0,0.03156033]
[1773207560106,0.07170604,69838.0,69810.0,0.03156033]
[1773207560304,0.07270604,69838.0,69810.0,0.03156033]
[1773207560498,0.07370604,69838.0,69810.0,0.03156033]
[1773207560945,0.07270604,69838.0,69810.0,0.03156033]
[1773207561342,0.07370604,69838.0,69810.0,0.03156033]
[1773207561753,0.07170604,69838.0,69810.0,0.03157107]
[1773207562136,0.07370604,69838.0,69810.0,0.03157107]
[1773207562627,0.07270604,69838.0,69810.0,0.03157107]
[1773207563116,0.07170604,69838.0,69810.0,0.03157107]
[1773207563521,0.07170604,69838.0,69812.0,0.03155978]
[1773207563731,0.07170604,69838.0,69815.0,0.03155978]
[1773207563732,0.07159631,69836.0,69815.0,0.03155978]
[1773207564131,0.00144,69835.0,69815.0,0.03155978]
[1773207564551,0.07159631,69836.0,69815.0,0.03155978]
[1773207564879,0.00144,69834.0,69815.0,0.03155978]
[1773207565095,0.00144,69833.0,69815.0,0.03155978]
[1773207565248,0.07159631,69836.0,69821.0,0.03154653]
[1773207565442,0.07159631,69836.0,69823.0,0.03154653]
[1773207565888,0.07159631,69837.0,69825.0,0.03154653]
[1773207567857,0.01941755,69837.0,69827.0,0.03153258]
[1773207568060,0.01941755,69837.0,69829.0,0.03153258]
[1773207568480,0.07302913,69843.0,69829.0,0.03153258]
[1773207568790,0.07302913,69843.0,69829.0,0.03190547]
[1773207571734,0.07302913,69843.0,69818.0,0.03075511]
[1773207571735,0.02870759,69842.0,69818.0,0.03075511]
[1773207572027,0.02870759,69842.0,69808.0,0.0002]
[1773207572028,0.02908115,69842.0,69813.0,0.03075511]
[1773207572330,0.02908115,69842.0,69816.0,0.00144]
[1773207573036,0.02908115,69842.0,69813.0,0.10237482]
[1773207573037,0.02908115,69842.0,69814.0,0.00144]
[1773207573820,0.07159118,69841.0,69814.0,0.00144]
[1773207573995,0.07159118,69841.0,69813.0,0.03075511]
[1773207575017,0.07259118,69841.0,69812.0,0.07306079]
[1773207575214,0.07259118,69841.0,69815.0,0.03215081]
[1773207576139,0.07159118,69841.0,69815.0,0.03215081]
[1773207576296,0.07259118,69841.0,69815.0,0.03215081]
[1773207576498,0.07359118,69841.0,69815.0,0.03215081]
[1773207576935,0.07159118,69841.0,69815.0,0.03215081]
[1773207577154,0.07259118,69841.0,69815.0,0.07181768]
[1773207577339,0.07359118,69841.0,69816.0,0.03194805]
[1773207577533,0.07259118,69841.0,69816.0,0.03194805]
[1773207577736,0.07159118,69841.0,69816.0,0.03194805]
[1773207577937,0.00144,69840.0,69816.0,0.03194805]
[1773207578330,0.07159323,69839.0,69818.0,0.03194435]
[1773207578548,0.00144,69838.0,69818.0,0.03194435]
[1773207579622,0.00144,69837.0,69818.0,0.03194435]
[1773207580240,0.07159631,69836.0,69819.0,0.07161374]
[1773207580438,0.07159631,69836.0,69820.0,0.03180695]
[1773207584620,0.07159631,69836.0,69815.0,0.03179156]
[1773207586016,0.07259631,69836.0,69815.0,0.03179156]
[1773207586214,0.07359631,69836.0,69815.0,0.03179156]
[1773207586718,0.07259631,69836.0,69815.0,0.03179156]
[1773207587096,0.07359631,69836.0,69815.0,0.03179156]
[1773207587504,0.07159631,69836.0,69815.0,0.03179156]
[1773207588016,0.07359631,69836.0,69816.0,0.03158195]
[1773207588219,0.07259631,69836.0,69816.0,0.03158195]
[1773207588586,0.07359631,69836.0,69816.0,0.03158195]
[1773207589049,0.07359631,69836.0,69808.0,1e-08]
[1773207589050,0.16989308,69835.0,69808.0,1e-08]
[1773207589255,0.02926272,69833.0,69808.0,1e-08]
[1773207589455,0.02926272,69833.0,69809.0,0.03061375]
[1773207590611,0.02859288,69831.0,69809.0,0.03061375]
[1773207591017,0.02859288,69831.0,69810.0,0.03061375]
[1773207591231,0.02859288,69829.0,69810.0,0.03061375]
[1773207591454,0.02859288,69829.0,69808.0,1e-08]
[1773207592635,0.07160451,69828.0,69808.0,1e-08]
[1773207592855,0.07160451,69828.0,69808.0,0.03125624]
[1773207593251,0.21223487,69828.0,69808.0,0.03125624]
[1773207593452,0.02859288,69827.0,69803.0,0.07162968]
[1773207593656,0.02859288,69827.0,69804.0,0.03061375]
[1773207594295,0.02859288,69827.0,69806.0,0.03061375]
[1773207594815,0.07160656,69826.0,69806.0,0.07162704]
[1773207594952,0.10019944,69826.0,69807.0,0.03061375]
[1773207595156,0.2408298,69826.0,69807.0,0.03061375]
[1773207595801,0.21223692,69826.0,69807.0,0.03061375]
[1773207596006,0.01089513,69825.0,69807.0,0.03061375]
[1773207596171,0.00144,69824.0,69807.0,0.03061375]
[1773207596690,0.00144,69824.0,69800.0,1e-08]
[1773207596691,0.01073387,69823.0,69800.0,1e-08]
[1773207596890,0.01073387,69823.0,69789.0,0.03061375]
[1773207596891,0.01073387,69819.0,69789.0,0.03061375]
[1773207597092,0.01073387,69817.0,69790.0,0.04925465]
[1773207597410,0.01062007,69815.0,69791.0,0.03061375]
[1773207598184,0.0109934,69815.0,69791.0,0.03061375]
[1773207599108,0.01046139,69813.0,69791.0,0.03061375]
[1773207600398,0.01146139,69813.0,69791.0,0.03061375]
[1773207600763,0.01146139,69813.0,69791.0,0.07164191]
[1773207600982,0.00981469,69811.0,69792.0,0.03061375]
[1773207601472,0.02859288,69808.0,69788.0,0.00144001]
[1773207601661,0.02859288,69808.0,69776.0,0.03061375]
[1773207601860,0.02859288,69808.0,69775.0,0.07188868]
[1773207601861,0.02859288,69808.0,69781.0,0.03061375]
[1773207602099,0.00144,69807.0,69783.0,0.03061375]
[1773207602671,0.001,69808.0,69790.0,0.04925465]
[1773207602875,0.00144,69807.0,69791.0,0.03061375]
[1773207603076,0.00144,69807.0,69776.0,0.03061375]
[1773207603077,0.02859288,69805.0,69776.0,0.03061375]
[1773207603313,0.00144,69804.0,69782.0,0.03061375]
[1773207603542,0.02859288,69805.0,69791.0,0.0002]
[1773207603543,0.00144,69803.0,69791.0,0.0002]
[1773207603936,0.02859288,69805.0,69791.0,0.0002]
[1773207604106,0.00144,69802.0,69795.0,0.0004]
[1773207604732,0.07162708,69806.0,69795.0,0.0004]
[1773207604911,0.00144,69805.0,69795.0,0.0004]
[1773207605932,0.07162913,69804.0,69795.0,0.0004]
[1773207607962,0.07262913,69804.0,69795.0,0.0004]
[1773207609184,0.07162913,69804.0,69795.0,0.0004]
[1773207609464,0.07162913,69804.0,69795.0,0.03101375]
[1773207610035,0.07162913,69804.0,69795.0,0.0004]
[1773207610370,0.07306913,69804.0,69795.0,0.0004]
[1773207611038,0.07406913,69804.0,69795.0,0.0004]
[1773207611552,0.07306913,69804.0,69795.0,0.0004]
[1773207611759,0.07406913,69804.0,69795.0,0.0004]
[1773207613373,0.07406913,69804.0,69795.0,0.0006]
[1773207614011,0.07306913,69804.0,69795.0,0.0006]
[1773207614161,0.07406913,69804.0,69795.0,0.0006]
[1773207614774,0.07325013,69804.0,69795.0,0.0006]
[1773207614977,0.07425013,69804.0,69795.0,0.0006]
[1773207616002,0.07325013,69804.0,69795.0,0.0006]
[1773207616217,0.07325013,69804.0,69790.0,0.07308301]
[1773207616218,0.07325013,69804.0,69774.0,0.07165939]
[1773207616219,0.02859288,69803.0,69774.0,0.07165939]
[1773207616412,0.02859288,69803.0,69771.0,0.0716626]
[1773207616653,0.07163118,69802.0,69775.0,1e-08]
[1773207616788,0.02859288,69801.0,69775.0,1e-08]
[1773207617988,0.02959288,69801.0,69775.0,1e-08]
[1773207618559,0.02859288,69799.0,69776.0,0.03061375]
[1773207618761,0.02859288,69797.0,69776.0,0.03061375]
[1773207619189,0.00144,69796.0,69776.0,0.03061375]
[1773207619391,0.02859288,69795.0,69776.0,0.03061375]
[1773207620690,0.07164042,69793.0,69781.0,0.10053608]
[1773207620890,0.07164042,69793.0,69782.0,0.02888434]
[1773207621945,0.07201352,69793.0,69782.0,0.02888434]
[1773207622307,0.07163529,69799.0,69782.0,0.03032434]
[1773207622308,0.07163431,69799.0,69782.0,0.03032434]
[1773207622516,0.07163323,69800.0,69782.0,0.03069744]
[1773207622710,0.07163323,69800.0,69783.0,0.07165068]
[1773207622932,0.07163323,69800.0,69784.0,0.02888434]
[1773207623312,0.0515831,69800.0,69784.0,0.02888434]
[1773207624444,0.07924973,69800.0,69785.0,0.00144]
[1773207625046,0.07924973,69800.0,69784.0,0.02888434]
[1773207625369,0.02766663,69799.0,69784.0,0.02888434]
[1773207625541,0.02766663,69799.0,69782.0,0.0003731]
[1773207625542,0.02766663,69799.0,69782.0,0.03069744]
[1773207626172,0.02766663,69799.0,69782.0,0.02925744]
[1773207627151,0.07163529,69798.0,69782.0,0.02925744]
[1773207627336,0.21278404,69798.0,69782.0,0.02925744]
[1773207627971,0.21278404,69798.0,69782.0,0.0720248]
[1773207628149,0.07307529,69798.0,69784.0,0.02888434]
[1773207628484,0.07407529,69798.0,69784.0,0.03032434]
[1773207629652,0.07307529,69798.0,69784.0,0.03032434]
[1773207630846,0.07407529,69798.0,69784.0,0.03032434]
[1773207631442,0.07307529,69798.0,69784.0,0.03032434]
[1773207631643,0.07307532,69798.0,69786.0,0.04060346]
[1773207631841,0.07163532,69798.0,69787.0,0.02888434]
[1773207632631,0.07263532,69798.0,69787.0,0.02888434]
[1773207633037,0.07163532,69798.0,69787.0,0.02888434]
[1773207633644,0.07163529,69799.0,69789.0,0.02888434]
[1773207633976,0.07163529,69799.0,69789.0,0.0287153]
[1773207635777,0.07163529,69799.0,69784.0,0.00144]
[1773207635932,0.07163529,69799.0,69785.0,0.02888434]
[1773207636132,0.09916317,69799.0,69785.0,0.02888434]
[1773207636374,0.09916317,69799.0,69786.0,0.00144]
[1773207636875,0.09916317,69799.0,69785.0,0.02888434]
[1773207637079,0.02752788,69798.0,69781.0,0.00144]
[1773207637255,0.02790098,69798.0,69779.0,0.00144]
[1773207637731,0.02752788,69796.0,69779.0,0.00144]
[1773207637927,0.02752788,69794.0,69779.0,0.00144]
[1773207638327,0.02752788,69794.0,69778.0,0.0289984]
[1773207638566,0.02752788,69794.0,69778.0,0.0275584]
[1773207638977,0.00144,69795.0,69786.0,0.0002]
[1773207639175,0.00144,69795.0,69782.0,0.0271584]
[1773207639355,0.00144,69795.0,69778.0,0.0004]
[1773207639356,0.02896788,69795.0,69778.0,0.0004]
[1773207639892,0.02752788,69793.0,69778.0,0.0004]
[1773207640058,0.02752788,69793.0,69779.0,0.0002]
[1773207640778,0.02752788,69793.0,69774.0,0.07309894]
[1773207640779,0.02752788,69787.0,69750.0,0.00023]
[1773207640948,0.02752788,69774.0,69745.0,0.0271584]
[1773207641557,0.00023,69775.0,69752.0,0.0271584]
[1773207641776,0.00144,69773.0,69765.0,0.0271584]
[1773207641977,0.07166198,69772.0,69759.0,0.0271584]
[1773207642181,0.02752788,69771.0,69754.0,0.07168019]
[1773207642308,0.02752788,69771.0,69754.0,0.0014]
[1773207642916,0.00146999,69770.0,69754.0,0.0014]
[1773207643118,0.02752788,69769.0,69754.0,0.0014]
[1773207643363,0.02752788,69769.0,69752.0,0.0271584]
[1773207643822,0.07166609,69768.0,69752.0,0.0271584]
[1773207644030,0.02752788,69767.0,69752.0,0.0271584]
[1773207644247,0.02896788,69766.0,69741.0,0.07169308]
[1773207644452,0.02896788,69766.0,69744.0,0.0271584]
[1773207644686,0.02896788,69766.0,69741.0,0.00144]
[1773207644887,0.02896788,69766.0,69741.0,0.02545841]
[1773207645114,0.02896788,69766.0,69734.0,0.0271584]
[1773207645266,0.02896788,69766.0,69735.0,0.00144]
[1773207645467,0.02896788,69766.0,69731.0,0.07170362]
[1773207645667,0.02896788,69766.0,69730.0,0.01749344]
[1773207645891,0.02752788,69760.0,69730.0,0.01749344]
[1773207646296,0.07167328,69761.0,69732.0,1e-08]
[1773207646297,0.02752788,69758.0,69732.0,1e-08]
[1773207646977,0.02752788,69756.0,69732.0,1e-08]
[1773207647927,0.02752788,69754.0,69732.0,1e-08]
[1773207648499,0.02752788,69752.0,69732.0,1e-08]
[1773207648721,0.02752788,69750.0,69732.0,1e-08]
[1773207648919,0.02752788,69748.0,69732.0,1e-08]
[1773207649911,0.02581763,69746.0,69732.0,1e-08]
[1773207650107,0.02581763,69744.0,69732.0,1e-08]
[1773207650962,0.00144,69745.0,69728.0,1e-08]
[1773207650963,0.00146999,69743.0,69728.0,1e-08]
[1773207651251,0.02581763,69742.0,69728.0,1e-08]
[1773207652027,0.02581763,69740.0,69728.0,1e-08]
[1773207652445,0.02581763,69740.0,69717.0,0.01542403]
[1773207653849,0.02581763,69740.0,69701.0,0.07173399]
[1773207653850,0.02581763,69740.0,69700.0,0.00748]
[1773207654069,0.02581763,69740.0,69711.0,0.0001456]
[1773207654070,0.02581763,69738.0,69711.0,0.0001456]
[1773207654270,0.02581763,69738.0,69705.0,0.08700102]
[1773207654271,0.02581763,69738.0,69705.0,0.00012]
[1773207655959,0.07169795,69737.0,69705.0,0.00012]
[1773207656218,0.02581763,69736.0,69705.0,0.00012]
[1773207656491,0.02581763,69732.0,69705.0,0.00012]
[1773207657292,0.02581763,69732.0,69702.0,1e-08]
[1773207657447,0.03143763,69732.0,69702.0,1e-08]
[1773207657854,0.03143763,69732.0,69705.0,0.0002]
[1773207658061,0.02581763,69730.0,69705.0,0.0002]
[1773207658257,0.02581763,69728.0,69702.0,1e-08]
[1773207658462,0.02581763,69728.0,69703.0,0.0138763]
[1773207658667,0.00144,69727.0,69703.0,0.0138763]
[1773207658866,0.00146999,69725.0,69703.0,0.0138763]
[1773207659068,0.02581763,69724.0,69703.0,0.0138763]
[1773207659485,0.02581763,69722.0,69703.0,0.0138763]
[1773207659867,0.02581763,69722.0,69703.0,0.01398808]
[1773207660067,0.0717144,69721.0,69704.0,0.01361866]
[1773207660666,0.025,70244.0,69704.0,0.01361866]
[1773207660667,0.00144,69725.0,69704.0,0.01361866]
[1773207660865,0.07169819,69737.0,69704.0,0.01361866]
[1773207661071,0.02581763,69736.0,69704.0,0.01361866]
[1773207661272,0.00144,69734.0,69711.0,0.01336225]
[1773207661504,0.07314126,69734.0,69713.0,0.0131173]
[1773207661818,0.37636321,69765.0,69713.0,0.0131173]
[1773207661971,0.00144,69736.0,69713.0,0.0131173]
[1773207662169,0.38686471,69765.0,69713.0,0.0131173]
[1773207662170,0.08287971,69748.0,69720.0,0.14811046]
[1773207662476,0.08287971,69748.0,69722.0,0.0131173]
[1773207662477,0.00146999,69733.0,69722.0,0.0131173]
[1773207662690,0.00146999,69733.0,69724.0,0.01292506]
[1773207663302,0.00146999,69733.0,69723.0,0.00144]
[1773207663303,0.00146999,69733.0,69722.0,0.00144]
[1773207663720,0.00146999,69733.0,69721.0,0.01728968]
[1773207663921,0.50146999,69733.0,69721.0,0.00155178]
[1773207664219,0.07170309,69732.0,69721.0,0.0732656]
[1773207664416,0.07170309,69732.0,69721.0,0.00011178]
[1773207664597,0.06191748,69731.0,69721.0,0.00011178]
[1773207665431,0.06191748,69731.0,69724.0,0.001]
[1773207666138,0.07170514,69730.0,69721.0,0.00011178]
[1773207666287,0.06170103,69729.0,69721.0,0.00011178]
[1773207666481,0.00144,69728.0,69721.0,0.00011178]
[1773207666683,0.06170103,69727.0,69711.0,0.07172408]
[1773207666892,0.06181277,69727.0,69711.0,0.07172408]
[1773207667095,0.06181277,69727.0,69711.0,0.00144]
[1773207667541,0.06328276,69727.0,69711.0,0.00144]
[1773207668319,0.02241159,69726.0,69712.0,0.07172366]
[1773207668621,0.07170617,69729.0,69712.0,0.07172366]
[1773207668835,0.07170617,69729.0,69712.0,0.0718354]
[1773207670006,0.06121681,69728.0,69712.0,0.0718354]
[1773207670420,0.07170823,69727.0,69712.0,0.0718354]
[1773207671026,0.07314645,69729.0,69712.0,0.0718354]
[1773207671268,0.07170617,69730.0,69712.0,0.0718354]
[1773207671269,0.29343593,69733.0,69712.0,0.0718354]
[1773207671436,0.2921903,69733.0,69712.0,0.0718354]
[1773207671634,0.26355005,69733.0,69712.0,0.0720354]
[1773207674456,0.06097615,69731.0,69712.0,0.0720354]
[1773207674655,0.06097615,69729.0,69712.0,0.0720354]
[1773207675789,0.00144,69730.0,69712.0,0.0720354]
[1773207676169,0.00144,69730.0,69712.0,0.0730354]
[1773207676590,0.07170617,69729.0,69712.0,0.0720354]